Cogmind - Beta 16.1 @@@ ROGUE MODE // 2026.02.11 @ 19:17:04 Player: Lintence Result: Self-destructed Performance ------------- Evolutions (1) 500 Regions Visited (2) 400 Robots Destroyed (31) 155 Value Destroyed (743) 743 Prototype IDs (1) 20 Alien Tech Used (0) 0 Bonus (0) 0 TOTAL SCORE: 1818 Bonus ------- None Cogmind --------- Core Integrity 278/400 Matter 150/300 Energy 100/100 System Corruption 1% Temperature Cool (0) Movement Flying (120) Ox1 Location -9/Materials Parts ------- > --- POWER (1) -------- (None) > --- PROPULSION (4) --- Flight Unit > --- UTILITY (2) ------ Small Storage Unit Visual Processing Unit > --- WEAPON (2) ------- Hammer > --- INVENTORY (8) ---- Ion Engine Light Ion Engine Light Ion Engine Cooled Ion Engine Hover Unit Medium Matter Pod (0) Hacking Suite Light Cannon Peak State ------------ > --- POWER ------------ Cooled Ion Engine > --- PROPULSION ------- Hover Unit Hover Unit Hover Unit Hover Unit > --- UTILITY ---------- Small Storage Unit Visual Processing Unit > --- WEAPON ----------- Light Cannon Light Cannon > --- INVENTORY -------- Ion Engine Light Ion Engine Light Ion Engine Hover Unit Medium Matter Pod Hacking Suite Light Cannon Hammer [Rating: 13] Favorites ----------- Power Light Ion Engine Engine Light Ion Engine Propulsion Hover Unit Leg Aluminum Leg Hover Unit Hover Unit Flight Unit Flight Unit Utility Small Storage Unit Device Structural Scanner Storage Small Storage Unit Processor Visual Processing Unit Weapon Light Cannon Energy Gun Medium Laser Ballistic Gun Light Assault Rifle Ballistic Cannon Light Cannon Impact Weapon Hammer Build | -11 -10 -9 ------- Run | Yrd Mat Mat Slots Evolved 2 | . . 2 Power . | . . . Propulsion 2 | . . 2 Utility . | . . . Weapon . | . . . Parts Attached 23 | 7 6 10 Power 3 | 1 . 2 Engine 3 | 1 . 2 Core . | . . . Reactor . | . . . Propulsion 9 | 2 2 5 Treads . | . . . Leg 2 | 2 . . Wheel . | . . . Hover 5 | . 2 3 Flight 2 | . . 2 Utility 4 | 1 2 1 Device 2 | . 2 . Storage 1 | 1 . . Processor 1 | . . 1 Hackware . | . . . Protection . | . . . Artifact . | . . . Weapon 7 | 3 2 2 Energy Gun 2 | 2 . . Energy Cannon . | . . . Ballistic Gun 1 | 1 . . Ballistic Cannon 3 | . 2 1 Launcher . | . . . Special Weapon . | . . . Impact Weapon 1 | . . 1 Slashing Weapon . | . . . Piercing Weapon . | . . . Special Melee Weapon . | . . . Unidentified Prototypes 1 | . . 1 Parts Lost 4 | . . 4 Power . | . . . Propulsion 3 | . . 3 Utility . | . . . Weapon 1 | . . 1 Highest Loss Streak 3 | . . 3 To Critical Strikes . | . . . Average Backups 4 | 1 4 5 Power 1 | . 1 2 Propulsion . | . 1 . Utility . | . . 1 Weapon 1 | . 1 1 Tool/Special . | . . . Unused Backups 6 | . 3 3 Power 1 | . . 1 Propulsion 3 | . 3 . Utility 2 | . . 2 Weapon . | . . . Tool/Special . | . . . Average Slot Usage (%) 87 | . 91 85 Engine 11 | . 14 10 Leg 8 | . 22 . Hover 20 | . 5 29 Flight 1 | . . 2 Device 8 | . 8 8 Storage 12 | . 14 11 Processor 1 | . . 2 Energy Gun 7 | . 18 . Ballistic Cannon 14 | . 6 20 Peak Build Rating 13 | 6 7 13 Average Rating 8 | 5 6 9 On Entrance 4 | . 6 6 Avg Prop Armor Cover (%) . | . . . Naked Turns . | . . . Heaviest Build 20 | 12 15 20 Greatest Support 24 | 20 20 24 Greatest Overweight (x) 4 | 2 2 4 Average Overweight (x) . | . . . Largest Inventory Capacity 8 | 8 8 8 Average Capacity 7 | 7 8 8 Most Carried 8 | 2 8 8 Average Carried 4 | 1 4 5 Final Capacity 8 | 8 8 8 Final Carried 8 | 2 5 8 Class Distribution -------------------- 52% | Mutant 47% | Scavenger-Mutant Dominant Class ---------------- Mutant | -10/Materials Scavenger-Mutant | -9/Materials Resources | -11 -10 -9 ----------- Run | Yrd Mat Mat Matter Collected 686 | 245 106 335 Remotely . | . . . Salvage Created 838 | . 263 575 Parts 50 | . 18 32 Haulers Intercepted . | . . . Recyclers Shooed . | . . . Parts Field Recycled . | . . . Retrieved Matter . | . . . Parts Self-Destructed . | . . . Prevented . | . . . Parts Restored . | . . . Kills | -11 -10 -9 ------- Run | Yrd Mat Mat Combat Hostiles Destroyed 22 | . 6 16 Guns 5 | . 5 . Cannons 16 | . 1 15 Classes Destroyed 9 | . 6 3 Worker 2 | . 1 1 Builder 1 | . 1 . Recycler 1 | . . 1 Operator 1 | . 1 . Watcher 4 | . 2 2 Swarmer 7 | . 3 4 Grunt 12 | . 3 9 Brawler 1 | . . 1 Sentry 2 | . . 2 Best Kill Streak 9 | . 3 9 Combat Bots Only 6 | . 3 6 Max Kills in Single Turn 2 | . 1 2 Gunslinging . | . . . Exploded . | . . . Melee . | . . . Uniques/NPCs Destroyed . | . . . Combat | -11 -10 -9 -------- Run | Yrd Mat Mat Hostile Shots Fired 102 | . 26 76 Missed 30 | . 8 22 Hits 72 | . 18 54 Projectile 72 | . 18 54 Critical Strikes 3 | . 2 1 Damage Taken 771 | . 170 601 Core 149 | . 27 122 Absorbed by Shields . | . . . Core Remaining (%) 94 | 100 89 . Volleys Fired 68 | . 22 46 Largest 2 | . 2 2 Hottest 90 | . 90 60 Shots Fired 132 | . 40 92 Gun 28 | . 28 . Cannon 104 | . 12 92 Launcher . | . . . Special . | . . . Kinetic 104 | . 12 92 Thermal 14 | . 14 . Explosive . | . . . Electromagnetic 14 | . 14 . Robot Hit Streak 10 | . 10 9 Robot Miss Streak 5 | . 5 4 Penetration Max . | . . . Secondary Targets 1 | . 1 . Max Gunslinging Chain 1 | . 1 . Shots Hit Robots 77 | . 20 57 Core Hits 37 | . 14 23 Critical Kills . | . . . Critical Parts Destroyed 1 | . . 1 Critical Strikes 4 | . 1 3 Burn 1 | . 1 . Blast 2 | . . 2 Smash 1 | . . 1 Melee Attacks 6 | . . 6 Impact 6 | . . 6 Slashing . | . . . Piercing . | . . . Sneak Attacks 1 | . . 1 Combat Hostiles . | . . . Follow-up Attacks . | . . . Damage Inflicted 1520 | . 358 1162 Guns 202 | . 202 . Cannons 1091 | . 92 999 Explosions 64 | . 64 . Melee 163 | . . 163 Ramming . | . . . Kinetic 1091 | . 92 999 Thermal 175 | . 175 . Explosive . | . . . Electromagnetic 91 | . 91 . Impact 163 | . . 163 Slashing . | . . . Piercing . | . . . Highest Corruption 1 | . . 1 Average Corruption 1 | . . 1 Corruption Purged . | . . . Corruption Blocked . | . . . Effects 3 | . . 3 Message Errors 1 | . . 1 Data Loss (minor) 2 | . . 2 Overload Shots . | . . . Overflow Damage 39 | . . 39 Projectiles 9 | . . 9 Explosions . | . . . Melee 30 | . . 30 Knockbacks 9 | . . 9 Impact . | . . . Kinetic 9 | . . 9 Secondary . | . . . Self-Inflicted Damage . | . . . Shots . | . . . Rammed . | . . . Targets Rammed . | . . . Kicked . | . . . Crushed . | . . . Highest Temperature 205 | . 205 39 Average Temperature 44 | . 82 12 Received Heat Transfer 312 | . 51 261 Siege Activations . | . . . Martial Activations . | . . . Shielding Activations . | . . . Robots Disrupted . | . . . Combat Hostiles . | . . . Robots Corrupted 1 | . . 1 Combat Hostiles 1 | . . 1 Parts Fried 1 | . . 1 Impact Corruptions 2 | . . 2 Robots Melted . | . . . Combat Hostiles . | . . . Parts Melted 2 | . 2 . Heat Transferred 457 | . 457 . Parts Sabotaged . | . . . Parts Stolen . | . . . Parts Stripped . | . . . Power Chain Reactions 1 | . 1 . Alert | -11 -10 -9 ------- Run | Yrd Mat Mat Maximum Alert Level . | . . . Low Security (%) 100 | 100 100 100 Level 1 . | . . . Level 2 . | . . . Level 3 . | . . . Level 4 . | . . . Level 5 . | . . . High Security . | . . . Max Security . | . . . Peak Influence 169 | . 116 169 Initial 38 | . . 38 Average 60 | . 63 67 Influence Increases 658 | . 201 457 Destroy 0b10 Robot/C 440 | . 120 320 Destroy 0b10 Robot/NC 45 | . 25 20 Destroy Leader 118 | . 34 84 Successful Hack 18 | . . 18 Disable Machine 30 | . 15 15 Destroy Structure 7 | . 7 . Influence Decreases 492 | . 110 382 Entered New Map 53 | . . 53 Time Decay 283 | . 110 173 Lost Part 40 | . . 40 Purge Threat 116 | . . 116 Squads Dispatched 4 | . 1 3 Investigation 1 | . . 1 Extermination . | . . . Reinforcement 3 | . 1 2 Assault . | . . . Garrison . | . . . Intercept . | . . . Searches Triggered . | . . . Construction Impeded . | . . . Haulers Reinforced . | . . . Active Scanning Responses . | . . . Cargo Convoy Interrupts . | . . . Stealth | -11 -10 -9 --------- Run | Yrd Mat Mat Distress Signals 5 | . 3 2 Communications Jammed . | . . . Distress Signals . | . . . Times Spotted 38 | . 12 26 Peak Tracking Total 7 | . 4 7 Tactical Retreats . | . . . Traps | -11 -10 -9 ------- Run | Yrd Mat Mat Traps Triggered . | . . . Indirectly . | . . . Trap Hack Attempts . | . . . Triggered . | . . . Disarmed . | . . . Reprogrammed . | . . . Reused . | . . . Traps Extracted . | . . . Installed . | . . . Triggered . | . . . Machines | -11 -10 -9 ---------- Run | Yrd Mat Mat Machines Disabled 3 | . 1 2 Max in Single Turn 1 | . 1 1 Machines Repaired . | . . . Machines Dismantled . | . . . Machines Sabotaged . | . . . Overloaded Fab Kills . | . . . Hacking | -11 -10 -9 --------- Run | Yrd Mat Mat Machines Accessed 5 | . 1 4 Terminals 5 | . 1 4 Fabricators . | . . . Repair Stations . | . . . Recycling Units . | . . . Scanalyzers . | . . . Garrison Access . | . . . Total Hacks 19 | . 3 16 Successful 7 | . 1 6 Failed 12 | . 2 10 Catastrophic 2 | . 1 1 Database Lockouts . | . . . Manual 11 | . 3 8 Terminals 19 | . 3 16 Fabricators . | . . . Repair Stations . | . . . Recycling Units . | . . . Scanalyzers . | . . . Garrison Access . | . . . Terminal Hacks 7 | . 1 6 Unreport Threat 1 | . . 1 Hauler Manifests 2 | . . 2 Registered Components 1 | . . 1 Zone Layout 3 | . 1 2 Fabricator Hacks . | . . . Repair Station Hacks . | . . . Recycling Unit Hacks . | . . . Scanalyzer . | . . . Garrison Access Hacks . | . . . Unauthorized Hacks . | . . . Terminals . | . . . Fabricators . | . . . Repair Stations . | . . . Recycling Units . | . . . Scanalyzers . | . . . Garrison Access . | . . . Data Cores Recovered . | . . . Used . | . . . Hacking Detections 5 | . 1 4 Full Trace Events 1 | . . 1 Feedback Events 1 | . . 1 Corruption 1 | . . 1 Feedback Blocked . | . . . Robot Schematics Acquired . | . . . Robots Built . | . . . Authchips . | . . . Time . | . . . Total Robot Build Rating . | . . . Part Schematics Acquired . | . . . Parts Built . | . . . Authchips . | . . . Time . | . . . Total Part Build Rating . | . . . Part Studies Acquired . | . . . Parts Repaired . | . . . Time . | . . . Parts Recycled . | . . . Recycled Matter . | . . . Retrieved Matter . | . . . Retrieved Components . | . . . Parts Scanalyzed . | . . . Part Schematics Acquired . | . . . Parts Damaged . | . . . Bothacking | -11 -10 -9 ------------ Run | Yrd Mat Mat Used RIF Installer . | . . . Robots Hacked . | . . . Non-combat . | . . . Combat . | . . . Robot Hacks Applied . | . . . Relay Couplers Released . | . . . Fabnet Peak Effective % . | . . . Robots Rewired . | . . . Allies Hacked . | . . . Hacks Repelled . | . . . Allies | -11 -10 -9 -------- Run | Yrd Mat Mat Total Allies . | . . . Largest Group . | . . . Highest-Rated Group . | . . . Highest-Rated Ally . | . . . Total Orders . | . . . Ally Attacks . | . . . Total Damage . | . . . Kills . | . . . Allies Corrupted . | . . . Allies Melted . | . . . Intel | -11 -10 -9 ------- Run | Yrd Mat Mat Active Infowar (turns) 575 | . 159 416 Optics 111 | . . 111 Structural 464 | . 159 305 Robot Analysis Total . | . . . Derelict Logs Recovered . | . . . Drone Launches . | . . . Drone Recoveries . | . . . Exploration | -11 -10 -9 ------------- Run | Yrd Mat Mat Turns Passed 743 | 66 260 417 Spaces Moved 485 | 46 173 266 Core 8 | 8 . . Treads . | . . . Legs 154 | 38 116 . Wheels . | . . . Hover 298 | . 57 241 Flight 25 | . . 25 Fastest Speed 37 | 50 56 37 Average Speed 96 | 117 101 90 Slowest Speed 360 | 150 180 360 Overloaded Moves . | . . . Propulsion Burnouts . | . . . Robots Hopped . | . . . Potential Cave-ins . | . . . Cave-ins Triggered . | . . . Exploration Rate (%) 22 | 3 36 28 Regions Visited 2 Branch Regions . Pre-discovered Areas . | . . . Known Exits Taken . | . . . Unknown Exits Taken 2 | 1 1 . Scrap Searched . | . . . Spaces Dug . | . . . Terrain Destroyed 5 | . 5 . Melee . | . . . Projectile . | . . . AOE 5 | . 5 . Terrain Rammed . | . . . Walls Destroyed . | . . . Machines Disabled . | . . . Actions | -11 -10 -9 --------- Run | Yrd Mat Mat Total 614 | 54 220 340 Wait . | . . . Move 483 | 45 172 266 Hop . | . . . Pick Up 13 | 2 7 4 Fast Attach 17 | 6 6 5 Attach 4 | . . 4 Detach 5 | . 3 2 Swap 3 | 1 . 2 Drop 15 | . 10 5 Fire 68 | . 22 46 Melee 6 | . . 6 Ram . | . . . Kick . | . . . Crush . | . . . Escape Stasis . | . . . Rewire . | . . . Trap . | . . . Miscellaneous . | . . . Route ------- -11/Scrapyard -10/Materials -9/Materials (discovered 1 exit: [*Min]) History --------- Turn | Location | Event 10 | -11/Scrapyard | Discovered new exit (range 14) 67 | -11/Scrapyard | Entered Materials 321 | -10/Materials | Build established: Mutant 322 | -10/Materials | Discovered new exit (range 10) 327 | -10/Materials | Entered another Materials area 327 | -9/Materials | Evolved 2 slots: Propulsion x2 535 | -9/Materials | Discovered new exit (range 14) 674 | -9/Materials | Build established: Scavenger-Mutant 710 | -9/Materials | Lost 3 parts (2n1w) 744 | -9/Materials | Self-destructed Last Messages --------------- 00702_ Acquired Flight Unit. 00703_ Acquired 5 matter. 00715_ Acquired 12 matter. 00717_ Dropped Lgt. Cannon. 00720_ Acquired Lgt. Cannon. 00724_ Sneak attack on R-06 Scavenger. 00724_ R-06 Scavenger destroyed. 00726_ K-01 Serf collects debris. 00730_ Destroyed Heat Sink. 00730_ Y-45 Defender system corrupted by crushing effect. 00736_ Flight Unit destroyed. 00741_ Y-45 Defender suffers critical hit (Smash). 00741_ Destroyed Hvy. Assault Rifle. 00741_ Y-45 Defender system corrupted by crushing effect. 00742_ Y-45 Defender system terminally corrupted. 00742_ Imp. Ion Engine fried. Map ----- +----------------------------------------------------+ | ????????? # ##?????????????????????????????????? | | ????????? # # ?????????????????????????????????? | | ????????? # # ?????????????????????????????????? | | ????????? / + ?????????????????????????????????? | | ???????? # % # ??????????????????????????????? | | ????????### #####??????????????????????????????? | | ????????## % %"##??????????????????????????????? | | ????????## !%% "##??????????????????????????????? | | ????????## %= ||##??????????????????????????????? | | ???????? # < ""##??????????????????????????????? | | ???????? # !##??????????????????????????????? | | #?????? # ""##??????????????????????????????? | | +#???"?? # "##??????????????????????????????? | | # ??? ? ## ##############?????????????????????? | | + ???? ## # =%! =%=#?????????????????????? | | # "???? ## # ""% ""! #?????????????????????? | | # "???? + # %"" """""[ #?????????????????????? | | # ???? ## # %"""" % #?????????????????????? | | # ???? ## # % ] * #?????????????????????? | | # ## ##+###########?????????????????????? | | ########## ! #########?????????????????????? | | ## ### =!% # #?????????????????????? | | ## + *%= # "" ##????????????????????? | | # """ ########% %# !! Y" #????????????????????? | | # """ # """ # # !! ""=#?????????????????????? | | + """ # "T" + %g @%#?????????????????????? | | % # """ # # %g#########?????????????????????? | | # # # # ????????????????????????????? | | ## """ # # # ????????????????????????????? | | %## """ # ! #% # ????????????????????????????? | | ## """ ######## # ????????????????????????????? | | ## ######## + ????????????????????????????? | | ## + ???? # ????????????????????????????? | | #########????### ## ????????????????????????????? | | #####?????### ## ????????????????????????????? | | %%##??????????# ######?????????????????????????? | | ##???########+##?????????????????????????????? | | +## ##???# ##?????????????????????????????? | | ##[##???# """##?????????????????????????????? | | ## ##???# """#??????????????????????????????? | | ## ##???# """#????#?????????????????????????? | | [## ##???# """#????#?????????????????????????? | | ## ##???#"" #????#?????????????????????????? | | ## ##???#"T #????#?????????????????????????? | | +## ##???#"" #????#?????????????????????????? | | ## ###### #????#?????????????????????????? | | ##+##########+####????#?????????????????????????? | | ## ! ### #######?????????????????????????? | | # ### ?????????????????????????? | | ! + "### ?????????????????????????? | +----------------------------------------------------+ Best States ------------- Heat Dissipation 35 Energy Generation 14 Energy Capacity 280 Matter Stores 300 Matter Capacity 300 Sight Range 18 Terrain Scan Density 10 Evasion (%) 62 Item Schematics ----------------- None Robot Schematics ------------------ None Fabricated ------------ Nothing Repaired ---------- Nothing Studied --------- None Alien Tech Used ----------------- None Achievements -------------- None Challenges ------------ None Game ------ Seed ControlSixCorpse Manual? 0 Play Time 00:12:29 Cumulative 56.5 hours Start 2026.02.11 @ 19:04:57 End 2026.02.11 @ 19:17:04 Sessions 1 Manual Loads 0 Difficulty Rogue Special Mode None Game No. 109 Rogue 109 Adventurer 0 Explorer 0 Win Type - Total 1 Types 1/0/0/0/0/0/0/0/0/0 Lore% 16 Gallery% 30 Achievement% 21 Wizard Run 0 Options --------- Layout 1 ASCII 0 Keyboard 0 Movement Mouse Keybinds 0 Fullscreen 2 Font 20/X11 Map View 50x35 Zoom Use 0% Tactical HUD 1 Map Filters NONE Filters NONE Steam 1 RUN: 9596c9e6-2cc7-477e-84fc-0f3303ddd1e2